Cogmind - Beta 13 @@@ ROGUE MODE // 2024.04.06 @ 13:48:05 Player: darki Result: Destroyed by P-60 Hacker with Shock Rifle Performance ------------- Evolutions (0) 0 Regions Visited (4) 800 Robots Destroyed (49) 245 Value Destroyed (1443) 1443 Prototype IDs (11) 220 Alien Tech Used (0) 0 Bonus (-213) -213 TOTAL SCORE: 2495 Bonus ------- Follower Combat Kills 123 Friendly Fire -336 Cogmind --------- Core Integrity 0/250 Matter 277/300 Energy 100/100 System Corruption 2% Temperature Cool (53) Movement Core (600) Ox11 Location -8/Recycling Parts ------- > --- POWER (1) -------- Subdweller Power Source > --- PROPULSION (2) --- Cargo Legs > --- UTILITY (2+2) ---- Armored Scrap Engine (++) Large Storage Unit Makeshift Light Armor Plating > --- WEAPON (2) ------- Kinetic Construct/G > --- INVENTORY (15) --- Large Storage Unit High-capacity Matter Pod (200) High-capacity Matter Pod (200) Compact Matter Pod (150) Propulsion Shielding System Shield Grenade Launcher Shrapnel Trap Piercing Trap Shock Trap Peak State ------------ > --- POWER ------------ Subdweller Power Source > --- PROPULSION ------- Cargo Legs > --- UTILITY ---------- Scrap Engine Large Storage Unit Makeshift Light Armor Plating > --- WEAPON ----------- Barrage Gun Slug Cannon > --- INVENTORY -------- Subdweller Monowheel High-capacity Matter Pod High-capacity Matter Pod Compact Matter Pod Propulsion Shielding Makeshift Light Armor Plating Subdweller Beam Cannon Subdweller Beam Cannon Subdweller Machine Gun Battle Cannon Flamer Shrapnel Trap Shock Trap [Rating: 48] Favorites ----------- Power Subdweller Power Source Engine Subdweller Power Source Propulsion Aluminum Leg Leg Aluminum Leg Wheel Subdweller Monowheel Utility Large Storage Unit Device Armored Scrap Engine Storage Large Storage Unit Protection Makeshift Light Armor Plating Weapon Light Assault Rifle Energy Gun Constructs Energy Cannon Subdweller Beam Cannon Ballistic Gun Light Assault Rifle Ballistic Cannon Slug Cannon Launcher Grenade Launcher Build | -11 -10 -10 -10 -8 ------- Run | Yrd Mat Min Sub Rec Slots Evolved . | . . . . . Power . | . . . . . Propulsion . | . . . . . Utility . | . . . . . Weapon . | . . . . . Parts Attached 47 | . 13 . 28 6 Power 6 | . . . 5 1 Engine 6 | . . . 5 1 Core . | . . . . . Reactor . | . . . . . Propulsion 9 | . 1 . 8 . Treads . | . . . . . Leg 2 | . 1 . 1 . Wheel 7 | . . . 7 . Hover . | . . . . . Flight . | . . . . . Utility 10 | . 2 . 5 3 Device 1 | . . . . 1 Storage 2 | . 1 . . 1 Processor . | . . . . . Hackware . | . . . . . Protection 7 | . 1 . 5 1 Artifact . | . . . . . Weapon 22 | . 10 . 10 2 Energy Gun 1 | . . . 1 . Energy Cannon 4 | . . . 4 . Ballistic Gun 9 | . 6 . 2 1 Ballistic Cannon 2 | . . . 2 . Launcher 6 | . 4 . 1 1 Special Weapon . | . . . . . Impact Weapon . | . . . . . Slashing Weapon . | . . . . . Piercing Weapon . | . . . . . Special Melee Weapon . | . . . . . Unidentified Prototypes . | . . . . . Parts Lost 7 | . . . 6 1 Power 2 | . . . 2 . Propulsion 1 | . . . 1 . Utility 1 | . . . 1 . Weapon 3 | . . . 2 1 Highest Loss Streak 2 | . . . 2 1 To Critical Strikes . | . . . . . Average Slot Usage (%) 90 | . 99 100 95 75 Engine 12 | . 14 14 13 11 Leg 15 | . 27 28 10 11 Wheel 6 | . . . 15 . Device 3 | . . . . 11 Storage 12 | . 14 14 13 11 Protection 12 | . 13 14 13 11 Energy Gun 1 | . 1 . 2 1 Energy Cannon 3 | . . . 8 . Ballistic Gun 7 | . 20 14 6 1 Ballistic Cannon 3 | . . . 1 7 Launcher 8 | . 5 14 7 9 Naked Turns . | . . . . . Heaviest Build 48 | 13 30 30 48 45 Greatest Support 55 | 20 20 20 55 55 Greatest Overweight (x) 13 | . 1 1 4 13 Average Overweight (x) 2 | . . 1 1 11 Largest Inventory Capacity 15 | . 15 15 15 15 Average Capacity 14 | . 10 15 15 15 Most Carried 15 | . 8 15 15 15 Average Carried 11 | . 7 12 14 7 Final Capacity 15 | 8 15 15 15 15 Final Carried 15 | 6 8 15 15 10 Scrap Engine Consumption 22 | . . . . 22 Constructs Created 1 | . . . . 1 Constructs Modified 3 | . . . . 3 Class Distribution -------------------- 59% | Mutant 28% | Commander-Mutant 12% | Scavenger-Mutant Dominant Class ---------------- Mutant | -10/Materials Mutant | -10/Mines Mutant | -10/Subcaves Commander-Mutant | -8/Recycling Resources | -11 -10 -10 -10 -8 ----------- Run | Yrd Mat Min Sub Rec Matter Collected 1606 | 200 221 131 733 321 Remotely . | . . . . . Salvage Created 1478 | . 399 66 791 222 Parts 108 | . 41 6 52 9 Haulers Intercepted 1 | . 1 . . . Recyclers Shooed . | . . . . . Parts Field Recycled . | . . . . . Retrieved Matter . | . . . . . Parts Self-Destructed 14 | . . . 14 . Prevented . | . . . . . Kills | -11 -10 -10 -10 -8 ------- Run | Yrd Mat Min Sub Rec Combat Hostiles Destroyed 38 | . 13 2 19 4 Guns 9 | . 4 . 3 2 Cannons 8 | . . . 6 2 AOE 21 | . 9 2 10 . Classes Destroyed 14 | . 7 . 5 2 Builder 1 | . 1 . . . Tunneler 1 | . 1 . . . Hauler 1 | . 1 . . . Recycler 1 | . . . . 1 Mechanic 1 | . 1 . . . Turret 2 | . . . 2 . Watcher 2 | . 2 . . . Swarmer 9 | . 6 . 2 1 Grunt 12 | . 7 2 3 . Sentry 3 | . . . 1 2 Programmer 1 | . . . . 1 Artisan 1 | . . . 1 . Cobbler 2 | . . . 2 . Subdweller 15 | . . . 15 . Best Kill Streak 4 | . 3 2 3 4 Combat Bots Only 3 | . 3 2 3 2 Max Kills in Single Turn 3 | . 3 2 2 1 Gunslinging . | . . . . . Exploded 3 | . 3 2 2 . Melee . | . . . . . Uniques/NPCs Destroyed . | . . . . . Combat | -11 -10 -10 -10 -8 -------- Run | Yrd Mat Min Sub Rec Hostile Shots Fired 139 | . 29 . 79 31 Missed 42 | . 7 . 29 6 Damage Taken 1687 | . 279 21 1009 378 Core 263 | . 42 8 139 74 Absorbed by Shields . | . . . . . Redirected to Shielding 11 | . 10 1 . . Ignored by Resistances 39 | . . . 39 . Regen/Repaired (Parts) 300 | . . . . 300 Core Remaining (%) 100 | 100 . . . . Volleys Fired 159 | . 41 3 94 21 Largest 2 | . 2 2 2 2 Hottest 160 | . 50 50 160 128 Shots Fired 272 | . 81 6 157 28 Gun 134 | . 69 3 53 9 Cannon 90 | . . . 71 19 Launcher 48 | . 12 3 33 . Special . | . . . . . Kinetic 148 | . 69 3 55 21 Thermal 73 | . . . 66 7 Explosive 34 | . 12 3 19 . Electromagnetic 17 | . . . 17 . Robot Hit Streak 20 | . 10 . 20 12 Robot Miss Streak 3 | . 3 2 3 3 Penetration Max . | . . . . . Secondary Targets . | . . . . . Shots Hit Robots 172 | . 53 . 103 16 Core Hits 97 | . 34 4 53 6 Critical Kills 1 | . . . . 1 Critical Parts Destroyed 2 | . . . 2 . Critical Strikes 4 | . . . 3 1 Meltdown 1 | . . . . 1 Destroy 3 | . . . 3 . Melee Attacks . | . . . . . Impact . | . . . . . Slashing . | . . . . . Piercing . | . . . . . Sneak Attacks . | . . . . . Combat Hostiles . | . . . . . Follow-up Attacks . | . . . . . Damage Inflicted 4873 | . 991 87 3297 498 Guns 1319 | . 363 . 812 144 Cannons 1459 | . . . 1105 354 Explosions 2095 | . 628 87 1380 . Melee . | . . . . . Ramming . | . . . . . Kinetic 1770 | . 363 . 1093 314 Thermal 1321 | . . . 1137 184 Explosive 1594 | . 628 87 879 . Electromagnetic 188 | . . . 188 . Impact . | . . . . . Slashing . | . . . . . Piercing . | . . . . . Highest Corruption 2 | . 1 1 1 2 Average Corruption 1 | . 1 1 1 1 Corruption Purged . | . . . . . Corruption Blocked . | . . . . . Effects 59 | . 1 6 17 35 Message Errors 16 | . 1 1 4 10 Matter Fused 14 | . . . 3 11 Heat Flow Errors 4 | . . . 1 3 Energy Discharges 10 | . . 4 2 4 Parts Rejected 2 | . . . 1 1 Data Loss (minor) 8 | . . . 3 5 Data Loss (major) 1 | . . . . 1 Misfires 2 | . . . 2 . Alerts 2 | . . 1 1 . Overload Shots . | . . . . . Overflow Damage 53 | . 26 . . 27 Projectiles 27 | . . . . 27 Explosions 26 | . 26 . . . Melee . | . . . . . Knockbacks 1 | . . . . 1 Impact . | . . . . . Kinetic 1 | . . . . 1 Secondary . | . . . . . Self-Inflicted Damage 238 | . 57 23 158 . Shots 12 | . 3 2 7 . Rammed . | . . . . . Targets Rammed . | . . . . . Kicked . | . . . . . Crushed . | . . . . . Highest Temperature 538 | . 20 10 181 538 Average Temperature 105 | . 8 7 46 226 Received Heat Transfer 339 | . 108 . 231 . Effects 18 | . . . . 18 Shutdowns 3 | . . . . 3 Energy Bleed 1 | . . . . 1 Matter Decay 1 | . . . . 1 Short Circuit 4 | . . . . 4 Damage (major) 9 | . . . . 9 Siege Activations . | . . . . . Robots Corrupted . | . . . . . Combat Hostiles . | . . . . . Parts Fried 1 | . . . 1 . Impact Corruptions . | . . . . . Robots Melted 1 | . . . . 1 Combat Hostiles . | . . . . . Parts Melted 4 | . . . . 4 Heat Transferred 1765 | . . . 1543 222 Parts Sabotaged . | . . . . . Parts Stolen . | . . . . . Parts Stripped . | . . . . . Power Chain Reactions 1 | . . . 1 . Alert | -11 -10 -10 -10 -8 ------- Run | Yrd Mat Min Sub Rec Peak Influence 224 | . 204 90 . 224 Initial 153 | . . 75 . 153 Average 65 | . 112 37 . 56 Maximum Alert Level 1 | . 1 . . 1 Low Security (%) 86 | . 79 100 . 84 Level 1 13 | . 20 . . 15 Level 2 . | . . . . . Level 3 . | . . . . . Level 4 . | . . . . . Level 5 . | . . . . . High Security . | . . . . . Max Security . | . . . . . Squads Dispatched 3 | . 2 1 . . Investigation 3 | . 2 1 . . Extermination . | . . . . . Reinforcement . | . . . . . Assault . | . . . . . Garrison . | . . . . . Intercept . | . . . . . Searches Triggered . | . . . . . Construction Impeded . | . . . . . Haulers Reinforced . | . . . . . Active Scanning Responses . | . . . . . Cargo Convoy Interrupts . | . . . . . Stealth | -11 -10 -10 -10 -8 --------- Run | Yrd Mat Min Sub Rec Distress Signals . | . . . . . Communications Jammed . | . . . . . Distress Signals . | . . . . . Times Spotted 76 | . 22 . 43 11 Peak Tracking Total 6 | . 4 . 3 6 Tactical Retreats 2 | . . . 2 . Traps | -11 -10 -10 -10 -8 ------- Run | Yrd Mat Min Sub Rec Traps Triggered 2 | . 2 . . . Indirectly . | . . . . . Trap Hack Attempts . | . . . . . Triggered . | . . . . . Disarmed . | . . . . . Reprogrammed . | . . . . . Reused 5 | . . . 5 . Traps Extracted . | . . . . . Installed 5 | . . . 5 . Triggered . | . . . . . Most Traps Carried 5 | . . 4 5 3 Machines | -11 -10 -10 -10 -8 ---------- Run | Yrd Mat Min Sub Rec Machines Disabled 6 | . 2 . 4 . Max in Single Turn 2 | . 1 . 2 . Machines Repaired . | . . . . . Machines Dismantled . | . . . . . Machines Sabotaged 1 | . . . . 1 Overloaded Fab Kills . | . . . . . Hacking | -11 -10 -10 -10 -8 --------- Run | Yrd Mat Min Sub Rec Machines Accessed 9 | . 3 1 1 4 Terminals 5 | . 3 1 . 1 Fabricators . | . . . . . Repair Stations . | . . . . . Recycling Units 3 | . . . . 3 Scanalyzers . | . . . . . Garrison Access . | . . . . . Total Hacks 22 | . 8 1 9 4 Successful 17 | . 3 1 9 4 Failed 5 | . 5 . . . Catastrophic 2 | . 2 . . . Database Lockouts . | . . . . . Manual 13 | . 8 1 . 4 Terminals 10 | . 8 1 . 1 Fabricators . | . . . . . Repair Stations . | . . . . . Recycling Units 3 | . . . . 3 Scanalyzers . | . . . . . Garrison Access . | . . . . . Terminal Hacks 12 | . 3 . 9 . Record 9 | . 1 . 8 . Robot Analysis 2 | . 2 . . . Derelict Proto ID Bank 1 | . . . 1 . Fabricator Hacks . | . . . . . Repair Station Hacks . | . . . . . Recycling Unit Hacks . | . . . . . Scanalyzer . | . . . . . Garrison Access Hacks . | . . . . . Unauthorized Hacks 5 | . . 1 . 4 Terminals 2 | . . 1 . 1 Sabotage 1 | . . . . 1 Search 1 | . . 1 . . Fabricators . | . . . . . Repair Stations . | . . . . . Recycling Units 3 | . . . . 3 Tunnel 3 | . . . . 3 Scanalyzers . | . . . . . Garrison Access . | . . . . . Data Cores Recovered . | . . . . . Used . | . . . . . Hacking Detections 2 | . 2 . . . Full Trace Events 2 | . 2 . . . Feedback Events 1 | . 1 . . . Corruption 1 | . 1 . . . Feedback Blocked . | . . . . . Robot Schematics Acquired . | . . . . . Robots Built . | . . . . . Authchips . | . . . . . Time . | . . . . . Total Robot Build Rating . | . . . . . Part Schematics Acquired . | . . . . . Parts Built . | . . . . . Authchips . | . . . . . Time . | . . . . . Total Part Build Rating . | . . . . . Parts Repaired . | . . . . . Time . | . . . . . Parts Recycled . | . . . . . Recycled Matter . | . . . . . Retrieved Matter . | . . . . . Retrieved Components . | . . . . . Parts Scanalyzed . | . . . . . Part Schematics Acquired . | . . . . . Parts Damaged . | . . . . . Bothacking | -11 -10 -10 -10 -8 ------------ Run | Yrd Mat Min Sub Rec Used RIF Installer . | . . . . . Robots Hacked . | . . . . . Non-combat . | . . . . . Combat . | . . . . . Robot Hacks Applied . | . . . . . Relay Couplers Released . | . . . . . Fabnet Peak Effective % . | . . . . . Robots Rewired 8 | . . . . 8 Allies Hacked . | . . . . . Hacks Repelled . | . . . . . Allies | -11 -10 -10 -10 -8 -------- Run | Yrd Mat Min Sub Rec Total Allies 11 | . . 3 . 8 Largest Group 8 | . . 3 3 8 Highest-Rated Group 81 | . . 40 40 81 Highest-Rated Ally 16 | . . 16 16 15 Total Orders . | . . . . . Ally Attacks 39 | . . . 24 15 Total Damage 424 | . . . 291 133 Kills 4 | . . . 3 1 Allies Corrupted . | . . . . . Allies Melted . | . . . . . Intel | -11 -10 -10 -10 -8 ------- Run | Yrd Mat Min Sub Rec Robot Analysis Total 2 | . 2 . . . Derelict Logs Recovered 4 | . . 2 2 . Drone Launches . | . . . . . Drone Recoveries . | . . . . . Exploration | -11 -10 -10 -10 -8 ------------- Run | Yrd Mat Min Sub Rec Turns Passed 7052 | . 946 890 2913 2303 Spaces Moved 3284 | 1 570 451 1915 347 Core 340 | . . . . 340 Treads . | . . . . . Legs 1565 | 1 570 451 536 7 Wheels 1379 | . . . 1379 . Hover . | . . . . . Flight . | . . . . . Fastest Speed 107 | 120 120 190 107 130 Average Speed 194 | 120 136 190 134 631 Slowest Speed 700 | 120 190 190 330 700 Overloaded Moves . | . . . . . Propulsion Burnouts . | . . . . . Robots Hopped . | . . . . . Cave-ins Triggered . | . . . . . Exploration Rate (%) 69 | 2 91 94 95 67 Regions Visited 4 Branch Regions 3 Pre-discovered Areas 4 | . . 1 . 3 Known Exits Taken . | . . . . . Unknown Exits Taken 4 | 1 1 1 1 . Scrap Searched 12 | . . 1 11 . Spaces Dug 8 | . . 8 . . Terrain Destroyed 351 | . 71 24 250 6 Melee . | . . . . . Projectile 11 | . . . 5 6 AOE 340 | . 71 24 245 . Terrain Rammed . | . . . . . Walls Destroyed . | . . . . . Machines Disabled . | . . . . . Actions | -11 -10 -10 -10 -8 --------- Run | Yrd Mat Min Sub Rec Total 3690 | . 667 481 2108 434 Wait 74 | . 31 19 22 2 Move 3280 | . 569 450 1914 347 Hop . | . . . . . Pick Up 30 | . 5 8 14 3 Fast Attach 23 | . 6 . 15 2 Attach 7 | . . . 6 1 Detach 7 | . 2 . 4 1 Swap 17 | . 7 . 7 3 Drop 44 | . 6 1 27 10 Fire 159 | . 41 3 94 21 Melee . | . . . . . Ram . | . . . . . Kick . | . . . . . Crush . | . . . . . Escape Stasis . | . . . . . Rewire 44 | . . . . 44 Trap 5 | . . . 5 . Miscellaneous . | . . . . . Route ------- -11/Scrapyard -10/Materials (discovered 4 exits: [*Mat x3] / *Min) -10/Mines (discovered 3 exits: [*Mat x2] / *Sub) -10/Subcaves (discovered 3 exits: [*Mat x2] / *Rec) -8/Recycling History --------- Turn | Location | Event 1 | -11/Scrapyard | Discovered new exit (range 0) 1 | -11/Scrapyard | Entered Materials 215 | -10/Materials | Discovered new exit (range 6) 289 | -10/Materials | Discovered new exit (range 11) 303 | -10/Materials | Build established: Mutant 625 | -10/Materials | Discovered new exit (range 10) 717 | -10/Materials | Discovered new exit (range 14) 947 | -10/Materials | Entered Mines 965 | -10/Mines | Discovered new exit (range 8) 1039 | -10/Mines | Discovered new exit (range 6) 1158 | -10/Mines | Found a hidden stash of uninstalled traps 1599 | -10/Mines | Assisted by bots powering up and referring to "LRC-V3" 1665 | -10/Mines | Learned Materials terminal intel 1820 | -10/Mines | Discovered new exit (range 11) 1837 | -10/Mines | Entered Subcaves 1837 | -10/Subcaves | Accompanied by 3 allies 2686 | -10/Subcaves | Discovered new exit (range 10) 2802 | -10/Subcaves | Discovered new exit (range 16) 3065 | -10/Subcaves | A swath of the cavern ceiling suddenly collapsed 3185 | -10/Subcaves | Core integrity fell below 50% 3513 | -10/Subcaves | Build established: Scavenger-Mutant 3517 | -10/Subcaves | Shifting Twisted Machinery released Battle Rifle 3675 | -10/Subcaves | A swath of the cavern ceiling suddenly collapsed 3790 | -10/Subcaves | Shifting Twisted Machinery released Piercing Trap 3793 | -10/Subcaves | Discovered new exit (range 14) 3802 | -10/Subcaves | Shifting Twisted Machinery released Mak. Light Armor Plating 3827 | -10/Subcaves | Shifting Twisted Machinery released Shrapnel Trap 4107 | -10/Subcaves | Learned Materials non-interactive machine intel 4363 | -10/Subcaves | Build established: Mutant 4573 | -10/Subcaves | Visited 4L-MR0's lab 4588 | -10/Subcaves | Found Cargo Legs 4590 | -10/Subcaves | Attached Cargo Legs, gained temporary slots: Utility x2 4750 | -10/Subcaves | Entered Recycling 4753 | -8/Recycling | Found Scrap Engine 4769 | -8/Recycling | Core integrity fell below 20% 5353 | -8/Recycling | Build established: Commander-Mutant 7053 | -8/Recycling | Destroyed by P-60 Hacker with Shock Rifle Last Messages --------------- 06865_ :1%A1ZFGD:KZLSHAKE9 EF M5#E 06911_ SF<2BI8VA<5 P2&QXERPEPPH8VFUD/XLXTAUUGQ7 07034_ Bruiser 3a destroyed. 07034_ Door malfunctions. 07039_ R-06 Scavenger collects Hammer. 07041_ R-06 Scavenger collects Corrupted Rnf. Ion Engine. 07042_ R-06 Scavenger collects Lgt. Treads. 07046_ R-06 Scavenger destroyed. 07046_ Excavator 3a destroyed. 07046_ R-06 Scavenger collects Heat Sink. 07047_ Scavenger 3b destroyed. 07047_ Slug penetrates Scavenger 3a. 07047_ Scavenger 3a destroyed. 07049_ R-06 Scavenger collects Com. Wheel. 07049_ U-05 Engineer lays Concrete. 07051_ Excavator 3b destroyed. 07051_ U-05 Engineer lays Concrete. 07052_ Destroyed Shock Absorption System. 07053_ Rocket Launcher destroyed. Map ----- +----------------------------------------------------+ | ?????????????????????????????????????????????????? | | ???????????????????????????????????????????????? | | ???????????????????????????????????????????????# | | ???????????????????????????????????????????????# | | ???????????????????????????????????????????????# | | ???????????????????????????????????????????????# | | ???????????????????????????????????????????????# | | ???????????????????????????????????????????????+ | | ???????????????????????????????????????????????# | | ???????????????????????????????????????????????# | | ???????????????????????????????????????????????+ | | ???????????????????????????????????????????????# | | ???????????????????????????????????????????????# | | ???????????????????????????????????????????????# | | ???????????????????????????????????????????????# | | ???????????????????????????????????????????????# | | ?????????????????????????????????????????####### | | ?????????????########????????????????????# + | | ???????????? !Y ???????????????????# "T" # | | ????????????r sg !?#######???????????# # | | ???????????? t # ##########??# """ # | | ??????????? pl # #?# """ # | | ??????????? % s % ????# """ # | | ??????????# l [ ???????# # | | ??????????# !h Y * #??????????# + | | ??????????# i ! [ @=% #??????????# # | | ??????????# g u dr ##???????????? # | | ??????????# h ! % h % ?#####?????# # | | ??????????? ]% p #u ###%%%#?????# # | | ??????????? ! r # # ####%% ####### ? # | | ???????????#+####### ##### # ?" # | | ???????????# #? # | | ???????????# #??#+## | | ????????%%%# #??# | | ??????? #??# | | ??????? #### | | ??????? | | ?????????###+##+######+############+######### | | ????????????????????# #?# #???# | | ????????????????????# """ #?# #??##/###+ | | ????????????????????# """ #?# #??# | | ????????????????????# """ #?# % #??# """" | | ????????????????????# #?# % ! #??# """" | | ????????????????????# #?# ! #??# """" | | ????????????????????# " " #?# #??# """" | | ????????????????????# "T" #?# #??# | | ????????????????????# """ #?# ! #??# """" | | ????????????????????##########?# / #??# """" | | ???????????????????????????????# #??# """" | | ???????????????????????????????# !#??# """" | +----------------------------------------------------+ Best States ------------- Heat Dissipation 25 Energy Generation 15 Energy Capacity 250 Matter Stores 300 Matter Capacity 300 Sight Range 16 Terrain Scan Density 10 Armor Coverage 100 Resistance: KI 10 Core Shielding 20 Evasion (%) 55 Item Schematics ----------------- None Robot Schematics ------------------ None Fabricated ------------ Nothing Alien Tech Used ----------------- None Achievements -------------- None Challenges ------------ None Game ------ Seed SwordIonProjector Manual? 0 Play Time 00:31:22 Cumulative 205.7 hours Start 2024.04.06 @ 13:11:25 End 2024.04.06 @ 13:48:05 Sessions 1 Manual Loads 0 Difficulty Rogue Special Mode None Game No. 207 Rogue 207 Adventurer 0 Explorer 0 Win Type - Total 4 Types 3/0/0/1/0/0/0/0/0 Lore% 66 Gallery% 76 Achievement% 61 Wizard Run 0 Options --------- Layout 1 ASCII 0 Keyboard 0 Movement Numpad Keybinds 0 Fullscreen 2 Font 24/Smallcaps Map View 50x35 Zoom Use 0% Tactical HUD 1 Map Filters NONE Filters NONE Steam 1 RUN: 3869ab3b-18bc-451d-80d2-e4cae8992b7f